fUST/lending_fUST_20260521
["ID","MTS","AMOUNT","RATE_DAILY","PERIOD"]
[422732165,1779337840000,-500.0,8.767e-05,2]
[422732170,1779337840000,-841.24,8.767e-05,2]
[422732164,1779337840000,-500.0,8.767e-05,2]
[422732166,1779337840000,-500.0,8.767e-05,2]
[422732173,1779337840000,-500.0,8.767e-05,2]
[422732172,1779337840000,-1520.67,8.767e-05,2]
[422732187,1779337840000,-1686.74,8.767e-05,2]
[422732180,1779337840000,-2008.58,8.767e-05,2]
[422732178,1779337840000,-1623.12,8.767e-05,2]
[422732177,1779337840000,-928.0,8.767e-05,2]
[422732176,1779337840000,-500.0,8.767e-05,2]
[422732186,1779337840000,-640.95,8.767e-05,2]
[422732183,1779337840000,-622.66,8.767e-05,2]
[422732182,1779337840000,-500.0,8.767e-05,2]
[422732185,1779337840000,-683.34,8.767e-05,2]
[422732181,1779337840000,-569.67,8.767e-05,2]
[422732184,1779337840000,-848.12,8.767e-05,2]
[422732188,1779337840000,-2037.01,8.767e-05,2]
[422732167,1779337840000,-624.55,8.767e-05,2]
[422732179,1779337840000,-500.0,8.767e-05,2]
[422732169,1779337840000,-500.0,8.767e-05,2]
[422732153,1779337840000,-500.0,8.767e-05,2]
[422732163,1779337840000,-500.0,8.767e-05,2]
[422732135,1779337840000,-762.6,8.493e-05,2]
[422732138,1779337840000,-500.0,8.493e-05,2]
[422732141,1779337840000,-693.39197629,8.557e-05,2]
[422732139,1779337840000,-550.76,8.493e-05,2]
[422732140,1779337840000,-668.65185756,8.502e-05,2]
[422732142,1779337840000,-420.0,8.599e-05,2]
[422732137,1779337840000,-500.0,8.493e-05,2]
[422732147,1779337840000,-204.82675014,8.667e-05,2]
[422732148,1779337840000,-795.0,8.7e-05,2]
[422732150,1779337840000,-1455.1472,8.767e-05,2]
[422732151,1779337840000,-500.0,8.767e-05,2]
[422732190,1779337840000,-1706.38,8.767e-05,2]
[422732159,1779337840000,-500.0,8.767e-05,2]
[422732160,1779337840000,-500.0,8.767e-05,2]
[422732154,1779337840000,-500.0,8.767e-05,2]
[422732155,1779337840000,-500.0,8.767e-05,2]
[422732158,1779337840000,-500.0,8.767e-05,2]
[422732152,1779337840000,-500.0,8.767e-05,2]
[422732149,1779337840000,-349.11674219,8.722e-05,2]
[422732157,1779337840000,-576.66,8.767e-05,2]
[422732156,1779337840000,-500.0,8.767e-05,2]
[422732161,1779337840000,-165.96052525,8.767e-05,2]
[422732162,1779337840000,-500.0,8.767e-05,2]
[422732168,1779337840000,-500.0,8.767e-05,2]
[422732191,1779337840000,-500.0,8.767e-05,2]
[422732208,1779337840000,-500.0,9.041e-05,2]
[422732189,1779337840000,-500.0,8.767e-05,2]
[422732224,1779337840000,-841.24,9.041e-05,2]
[422732221,1779337840000,-624.55,9.041e-05,2]
[422732220,1779337840000,-500.0,9.041e-05,2]
[422732216,1779337840000,-500.0,9.041e-05,2]
[422732226,1779337840000,-500.0,9.041e-05,2]
[422732230,1779337840000,-928.0,9.041e-05,2]
[422732228,1779337840000,-623.87191743,9.041e-05,2]
[422732233,1779337840000,-2008.58,9.041e-05,2]
[422732229,1779337840000,-500.0,9.041e-05,2]
[422732232,1779337840000,-500.0,9.041e-05,2]
[422732215,1779337840000,-500.0,9.041e-05,2]
[422732231,1779337840000,-1623.12,9.041e-05,2]
[422732236,1779337840000,-622.66,9.041e-05,2]
[422732238,1779337840000,-683.34,9.041e-05,2]
[422732234,1779337840000,-569.67,9.041e-05,2]
[422732237,1779337840000,-848.12,9.041e-05,2]
[422732235,1779337840000,-500.0,9.041e-05,2]
[422732239,1779337840000,-640.95,9.041e-05,2]
[422732240,1779337840000,-1686.74,9.041e-05,2]
[422732241,1779337840000,-2037.01,9.041e-05,2]
[422732242,1779337840000,-500.0,9.041e-05,2]
[422732145,1779337840000,-745.65223615,8.667e-05,2]
[422732227,1779337840000,-9977.45,9.041e-05,2]
[422732225,1779337840000,-1520.67,9.041e-05,2]
[422732218,1779337840000,-500.0,9.041e-05,2]
[422732219,1779337840000,-500.0,9.041e-05,2]
[422732192,1779337840000,-500.0,8.767e-05,2]
[422732200,1779337840000,-500.0,8.767e-05,2]
[422732198,1779337840000,-500.0,8.767e-05,2]
[422732195,1779337840000,-1060.92,8.767e-05,2]
[422732194,1779337840000,-786.01,8.767e-05,2]
[422732199,1779337840000,-762.6,8.767e-05,2]
[422732201,1779337840000,-500.0,8.767e-05,2]
[422732193,1779337840000,-500.0,8.767e-05,2]
[422732196,1779337840000,-1468.54,8.767e-05,2]
[422732203,1779337840000,-152.0,8.816e-05,7]
[422732204,1779337840000,-1389.74,9.041e-05,2]
[422732205,1779337840000,-1455.1472,9.041e-05,2]
[422732202,1779337840000,-500.0,8.767e-05,2]
[422732207,1779337840000,-500.0,9.041e-05,2]
[422732209,1779337840000,-500.0,9.041e-05,2]
[422732206,1779337840000,-500.0,9.041e-05,2]
[422732210,1779337840000,-500.0,9.041e-05,2]
[422732211,1779337840000,-500.0,9.041e-05,2]
[422732213,1779337840000,-500.0,9.041e-05,2]
[422732214,1779337840000,-500.0,9.041e-05,2]
[422732222,1779337840000,-500.0,9.041e-05,2]
[422732223,1779337840000,-500.0,9.041e-05,2]
[422732212,1779337840000,-576.66,9.041e-05,2]
[422732197,1779337840000,-500.0,8.767e-05,2]
[422732217,1779337840000,-500.0,9.041e-05,2]
[422732144,1779337840000,-150.48132108,8.655e-05,2]
[422732143,1779337840000,-719.04747942,8.612e-05,2]
[422732146,1779337840000,-160.0,8.667e-05,2]
[422732120,1779337840000,-848.12,8.493e-05,2]
[422732113,1779337840000,-928.0,8.493e-05,2]
[422732114,1779337840000,-1623.12,8.493e-05,2]
[422732118,1779337840000,-500.0,8.493e-05,2]
[422732115,1779337840000,-500.0,8.493e-05,2]
[422732117,1779337840000,-569.67,8.493e-05,2]
[422732119,1779337840000,-622.66,8.493e-05,2]
[422732121,1779337840000,-683.34,8.493e-05,2]
[422732123,1779337840000,-1686.74,8.493e-05,2]
[422732132,1779337840000,-1468.54,8.493e-05,2]
[422732116,1779337840000,-2008.58,8.493e-05,2]
[422732124,1779337840000,-2037.01,8.493e-05,2]
[422732122,1779337840000,-640.95,8.493e-05,2]
[422732136,1779337840000,-500.0,8.493e-05,2]
[422732134,1779337840000,-500.0,8.493e-05,2]
[422732131,1779337840000,-1060.92,8.493e-05,2]
[422732128,1779337840000,-500.0,8.493e-05,2]
[422732130,1779337840000,-786.01,8.493e-05,2]
[422732133,1779337840000,-500.0,8.493e-05,2]
[422732125,1779337840000,-500.0,8.493e-05,2]
[422732129,1779337840000,-500.0,8.493e-05,2]
[422732126,1779337840000,-1706.38,8.493e-05,2]
[422732127,1779337840000,-500.0,8.493e-05,2]
[422732292,1779337841000,-569.67,9.315e-05,2]
[422732282,1779337841000,-500.0,9.315e-05,2]
[422732283,1779337841000,-841.24,9.315e-05,2]
[422732293,1779337841000,-500.0,9.315e-05,2]
[422732284,1779337841000,-1520.67,9.315e-05,2]
[422732280,1779337841000,-624.55,9.315e-05,2]
[422732272,1779337841000,-500.0,9.315e-05,2]
[422732291,1779337841000,-2008.58,9.315e-05,2]
[422732281,1779337841000,-500.0,9.315e-05,2]
[422732273,1779337841000,-500.0,9.315e-05,2]
[422732270,1779337841000,-500.0,9.315e-05,2]
[422732294,1779337841000,-622.66,9.315e-05,2]
[422732285,1779337841000,-556.90055248,9.315e-05,2]
[422732286,1779337841000,-9977.45,9.315e-05,2]
[422732301,1779337841000,-1706.38,9.315e-05,2]
[422732290,1779337841000,-500.0,9.315e-05,2]
[422732287,1779337841000,-500.0,9.315e-05,2]
[422732296,1779337841000,-683.34,9.315e-05,2]
[422732307,1779337841000,-500.0,9.315e-05,2]
[422732295,1779337841000,-848.12,9.315e-05,2]
[422732306,1779337841000,-1468.54,9.315e-05,2]
[422732298,1779337841000,-1686.74,9.315e-05,2]
[422732302,1779337841000,-500.0,9.315e-05,2]
[422732297,1779337841000,-640.95,9.315e-05,2]
[422732299,1779337841000,-2037.01,9.315e-05,2]
[422732300,1779337841000,-500.0,9.315e-05,2]
[422732275,1779337841000,-500.0,9.315e-05,2]
[422732303,1779337841000,-500.0,9.315e-05,2]
[422732305,1779337841000,-1060.92,9.315e-05,2]
[422732288,1779337841000,-928.0,9.315e-05,2]
[422732274,1779337841000,-500.0,9.315e-05,2]
[422732262,1779337841000,-20256.41591223,9.289e-05,2]
[422732271,1779337841000,-576.66,9.315e-05,2]
[422732252,1779337841000,-762.6,9.041e-05,2]
[422732250,1779337841000,-500.0,9.041e-05,2]
[422732243,1779337841000,-1706.38,9.041e-05,2]
[422732247,1779337841000,-786.01,9.041e-05,2]
[422732248,1779337841000,-1060.92,9.041e-05,2]
[422732244,1779337841000,-500.0,9.041e-05,2]
[422732251,1779337841000,-500.0,9.041e-05,2]
[422732245,1779337841000,-500.0,9.041e-05,2]
[422732246,1779337841000,-396.49370444,9.041e-05,2]
[422732249,1779337841000,-1468.54,9.041e-05,2]
[422732253,1779337841000,-500.0,9.041e-05,2]
[422732256,1779337841000,-456.25994138,9.096e-05,2]
[422732254,1779337841000,-500.0,9.041e-05,2]
[422732255,1779337841000,-447.35686895,9.041e-05,2]
[422732276,1779337841000,-500.0,9.315e-05,2]
[422732257,1779337841000,-456.25994138,9.123e-05,2]
[422732260,1779337841000,-456.25994138,9.233e-05,2]
[422732261,1779337841000,-456.25994138,9.26e-05,2]
[422732258,1779337841000,-456.25994138,9.178e-05,2]
[422732304,1779337841000,-786.01,9.315e-05,2]
[422732264,1779337841000,-1455.1472,9.315e-05,2]
[422732265,1779337841000,-500.0,9.315e-05,2]
[422732263,1779337841000,-1389.74,9.315e-05,2]
[422732267,1779337841000,-500.0,9.315e-05,2]
[422732277,1779337841000,-500.0,9.315e-05,2]
[422732279,1779337841000,-500.0,9.315e-05,2]
[422732278,1779337841000,-500.0,9.315e-05,2]
[422732266,1779337841000,-500.0,9.315e-05,2]
[422732268,1779337841000,-500.0,9.315e-05,2]
[422732269,1779337841000,-500.0,9.315e-05,2]
[422732259,1779337841000,-720.0,9.221e-05,2]
[422732308,1779337841000,-500.0,9.315e-05,2]
[422732289,1779337841000,-1623.12,9.315e-05,2]
[422732309,1779337841000,-762.6,9.315e-05,2]
[422732344,1779337841000,-1520.67,9.589e-05,2]
[422732347,1779337841000,-928.0,9.589e-05,2]
[422732357,1779337841000,-1686.74,9.589e-05,2]
[422732358,1779337841000,-2037.01,9.589e-05,2]
[422732348,1779337841000,-1623.12,9.589e-05,2]
[422732352,1779337841000,-500.0,9.589e-05,2]
[422732354,1779337841000,-848.12,9.589e-05,2]
[422732359,1779337841000,-500.0,9.589e-05,2]
[422732351,1779337841000,-569.67,9.589e-05,2]
[422732346,1779337841000,-500.0,9.589e-05,2]
[422732349,1779337841000,-500.0,9.589e-05,2]
[422732353,1779337841000,-622.66,9.589e-05,2]
[422732350,1779337841000,-2008.58,9.589e-05,2]
[422732356,1779337841000,-640.95,9.589e-05,2]
[422732345,1779337841000,-9977.45,9.589e-05,2]
[422732355,1779337841000,-683.34,9.589e-05,2]
[422732361,1779337841000,-500.0,9.589e-05,2]
[422732372,1779337841000,-204.345501,9.604e-05,2]
[422732360,1779337841000,-1706.38,9.589e-05,2]
[422732371,1779337841000,-160.0,9.604e-05,2]
[422732365,1779337841000,-1468.54,9.589e-05,2]
[422732362,1779337841000,-500.0,9.589e-05,2]
[422732363,1779337841000,-786.01,9.589e-05,2]
[422732321,1779337841000,-456.25994138,9.562e-05,2]
[422732366,1779337841000,-500.0,9.589e-05,2]
[422732368,1779337841000,-762.6,9.589e-05,2]
[422732369,1779337841000,-500.0,9.589e-05,2]
[422732370,1779337841000,-500.0,9.589e-05,2]
[422732374,1779337841000,-160.0,9.604e-05,2]
[422732373,1779337841000,-248.691003,9.604e-05,2]
[422732364,1779337841000,-1060.92,9.589e-05,2]
[422732343,1779337841000,-841.24,9.589e-05,2]
[422732367,1779337841000,-500.0,9.589e-05,2]
[422732342,1779337841000,-500.0,9.589e-05,2]
[422732341,1779337841000,-500.0,9.589e-05,2]
[422732320,1779337841000,-456.25994138,9.534e-05,2]
[422732311,1779337841000,-500.0,9.315e-05,2]
[422732310,1779337841000,-500.0,9.315e-05,2]
[422732312,1779337841000,-456.25994138,9.315e-05,2]
[422732313,1779337841000,-707.33924608,9.339e-05,2]
[422732322,1779337841000,-174.7878,9.589e-05,2]
[422732317,1779337841000,-587.0,9.458e-05,2]
[422732318,1779337841000,-456.25994138,9.479e-05,2]
[422732314,1779337841000,-456.25994138,9.342e-05,2]
[422732316,1779337841000,-456.25994138,9.452e-05,2]
[422732315,1779337841000,-456.25994138,9.397e-05,2]
[422732324,1779337841000,-1455.1472,9.589e-05,2]
[422732330,1779337841000,-500.0,9.589e-05,2]
[422732323,1779337841000,-1389.74,9.589e-05,2]
[422732319,1779337841000,-150.48132108,9.491e-05,2]
[422732331,1779337841000,-576.66,9.589e-05,2]
[422732329,1779337841000,-500.0,9.589e-05,2]
[422732340,1779337841000,-500.0,9.589e-05,2]
[422732339,1779337841000,-624.55,9.589e-05,2]
[422732338,1779337841000,-500.0,9.589e-05,2]
[422732325,1779337841000,-500.0,9.589e-05,2]
[422732335,1779337841000,-500.0,9.589e-05,2]
[422732336,1779337841000,-500.0,9.589e-05,2]
[422732337,1779337841000,-500.0,9.589e-05,2]
[422732327,1779337841000,-500.0,9.589e-05,2]
[422732333,1779337841000,-500.0,9.589e-05,2]
[422732334,1779337841000,-420.72519731,9.589e-05,2]
[422732326,1779337841000,-500.0,9.589e-05,2]
[422732332,1779337841000,-500.0,9.589e-05,2]
[422732328,1779337841000,-500.0,9.589e-05,2]
[422732416,1779337842000,-5135.0,9.753e-05,2]
[422732408,1779337842000,-1207.391773,9.683e-05,2]
[422732404,1779337842000,-789.039766,9.683e-05,2]
[422732406,1779337842000,-160.0,9.683e-05,2]
[422732403,1779337842000,-474.519883,9.683e-05,2]
[422732412,1779337842000,-634.83396,9.683e-05,2]
[422732411,1779337842000,-397.41698,9.683e-05,2]
[422732400,1779337842000,-318.654958,9.679e-05,2]
[422732401,1779337842000,-477.309916,9.679e-05,2]
[422732414,1779337842000,-309.903654,9.727e-05,2]
[422732413,1779337842000,-272.0694,9.7e-05,2]
[422732415,1779337842000,-295.114143,9.731e-05,2]
[422732419,1779337842000,-248.727806,9.776e-05,2]
[422732426,1779337842000,-1389.74,9.863e-05,2]
[422732428,1779337842000,-159.06486232,9.863e-05,2]
[422732423,1779337842000,-198.954067,9.831e-05,2]
[422732420,1779337842000,-163.24164,9.8e-05,2]
[422732417,1779337842000,-151.0,9.753e-05,2]
[422732418,1779337842000,-163.0,9.753e-05,2]
[422732422,1779337842000,-210.212742,9.831e-05,2]
[422732424,1779337842000,-245.059894,9.831e-05,2]
[422732425,1779337842000,-173.483569,9.831e-05,2]
[422732410,1779337842000,-160.0,9.683e-05,2]
[422732421,1779337842000,-243.647812,9.831e-05,2]
[422732427,1779337842000,-533.5674,9.863e-05,2]
[422732402,1779337842000,-160.0,9.683e-05,2]
[422732381,1779337842000,-1567.081686,9.635e-05,2]
[422732399,1779337842000,-160.0,9.679e-05,2]
[422732429,1779337842000,-500.0,9.863e-05,2]
[422732384,1779337842000,-161.091885,9.635e-05,2]
[422732385,1779337842000,-162.18377,9.635e-05,2]
[422732386,1779337842000,-160.0,9.652e-05,2]
[422732376,1779337842000,-2790.418042,9.604e-05,2]
[422732375,1779337842000,-1475.209021,9.604e-05,2]
[422732380,1779337842000,-160.0,9.635e-05,2]
[422732377,1779337842000,-160.0,9.635e-05,2]
[422732378,1779337842000,-716.683784,9.635e-05,2]
[422732379,1779337842000,-1273.367568,9.635e-05,2]
[422732382,1779337842000,-2974.163373,9.635e-05,2]
[422732409,1779337842000,-2254.783547,9.683e-05,2]
[422732383,1779337842000,-160.0,9.635e-05,2]
[422732389,1779337842000,-476.496826,9.652e-05,2]
[422732388,1779337842000,-364.407211,9.652e-05,2]
[422732395,1779337842000,-584.007147,9.652e-05,2]
[422732394,1779337842000,-372.003573,9.652e-05,2]
[422732396,1779337842000,-160.0,9.652e-05,2]
[422732397,1779337842000,-847.661143,9.652e-05,2]
[422732391,1779337842000,-946.171662,9.652e-05,2]
[422732393,1779337842000,-160.0,9.652e-05,2]
[422732392,1779337842000,-1732.343325,9.652e-05,2]
[422732390,1779337842000,-160.0,9.652e-05,2]
[422732398,1779337842000,-1535.322287,9.652e-05,2]
[422732387,1779337842000,-262.203605,9.652e-05,2]
[422732440,1779337842000,-500.0,9.863e-05,2]
[422732486,1779337842000,-1134.77617,9.996e-05,2]
[422732433,1779337842000,-500.0,9.863e-05,2]
[422732465,1779337842000,-500.0,9.863e-05,2]
[422732473,1779337842000,-500.0,9.863e-05,2]
[422732474,1779337842000,-500.0,9.863e-05,2]
[422732472,1779337842000,-1468.54,9.863e-05,2]
[422732469,1779337842000,-500.0,9.863e-05,2]
[422732468,1779337842000,-500.0,9.863e-05,2]
[422732471,1779337842000,-1060.92,9.863e-05,2]
[422732470,1779337842000,-786.01,9.863e-05,2]
[422732475,1779337842000,-762.6,9.863e-05,2]
[422732478,1779337842000,-318.76,9.9e-05,5]
[422732477,1779337842000,-500.0,9.863e-05,2]
[422732466,1779337842000,-1706.38,9.863e-05,2]
[422732479,1779337842000,-2226.20098,9.9e-05,2]
[422732496,1779337842000,-2403.70485075,0.0001,2]
[422732476,1779337842000,-500.0,9.863e-05,2]
[422732481,1779337842000,-38350.57528632,9.9e-05,10]
[422732480,1779337842000,-1729.65386846,9.9e-05,2]
[422732482,1779337842000,-1424.0,9.989e-05,4]
[422732484,1779337842000,-235.783271,9.996e-05,2]
[422732490,1779337842000,-428.47,8.767e-05,2]
[422732492,1779337842000,-122.29,8.767e-05,2]
[422732493,1779337842000,-329.11333634,0.0001,2]
[422732498,1779337842000,-23149.9999996,0.0001,2]
[422732431,1779337842000,-500.0,9.863e-05,2]
[422732488,1779337842000,-59661.19311844,0.0001,2]
[422732461,1779337842000,-848.12,9.863e-05,2]
[422732459,1779337842000,-1686.74,9.863e-05,2]
[422732455,1779337842000,-500.0,9.863e-05,2]
[422732441,1779337842000,-624.55,9.863e-05,2]
[422732439,1779337842000,-500.0,9.863e-05,2]
[422732436,1779337842000,-500.0,9.863e-05,2]
[422732430,1779337842000,-500.0,9.863e-05,2]
[422732438,1779337842000,-500.0,9.863e-05,2]
[422732434,1779337842000,-576.66,9.863e-05,2]
[422732437,1779337842000,-543.12189721,9.863e-05,2]
[422732442,1779337842000,-500.0,9.863e-05,2]
[422732444,1779337842000,-500.0,9.863e-05,2]
[422732463,1779337842000,-2037.01,9.863e-05,2]
[422732449,1779337842000,-500.0,9.863e-05,2]
[422732456,1779337842000,-622.66,9.863e-05,2]
[422732445,1779337842000,-841.24,9.863e-05,2]
[422732443,1779337842000,-500.0,9.863e-05,2]
[422732450,1779337842000,-928.0,9.863e-05,2]
[422732446,1779337842000,-1520.67,9.863e-05,2]
[422732457,1779337842000,-683.34,9.863e-05,2]
[422732454,1779337842000,-569.67,9.863e-05,2]
[422732447,1779337842000,-9977.45,9.863e-05,2]
[422732451,1779337842000,-1623.12,9.863e-05,2]
[422732453,1779337842000,-2008.58,9.863e-05,2]
[422732452,1779337842000,-500.0,9.863e-05,2]
[422732458,1779337842000,-640.95,9.863e-05,2]
[422732432,1779337842000,-500.0,9.863e-05,2]
[422732435,1779337842000,-500.0,9.863e-05,2]
[422732506,1779337843000,-254.40684945,9.863e-05,2]
[422732501,1779337843000,-429.42624312,9.041e-05,2]
[422732502,1779337843000,-121.33375688,9.041e-05,2]
[422732503,1779337843000,-550.76,9.315e-05,2]
[422732504,1779337843000,-402.99510565,9.589e-05,2]
[422732507,1779337843000,-296.35315055,9.863e-05,2]
[422732508,1779337843000,-4683.9402354,0.0001,2]
[422732510,1779337843000,-4405.6948741,0.0001,2]
[422732509,1779337843000,-28361.73264959,0.0001,2]
[422732505,1779337843000,-147.76489435,9.589e-05,2]
[422732520,1779337846000,-299.77745085,0.0001,2]
[422732519,1779337846000,-58702.33004377,0.0001,2]
[422732518,1779337846000,-34065.51590359,0.0001,2]
[422732517,1779337846000,-2329.18508868,0.0001,2]
[422732521,1779337908000,210.36053736,6.946e-05,2]
[422732574,1779339032000,-300.0,7.399e-05,2]
[422732587,1779339032000,-449.47356353,7.4e-05,2]
[422732589,1779339032000,-677.76535421,7.4e-05,2]
[422732585,1779339032000,-3109.34792673,7.4e-05,2]
[422732578,1779339032000,-296.17413532,7.4e-05,2]
[422732580,1779339032000,-1080.85474927,7.4e-05,2]
[422732582,1779339032000,-1645.00179108,7.4e-05,2]
[422732576,1779339032000,-577.34105446,7.399e-05,2]
[422732670,1779339038000,-15303.82247986,7.4e-05,2]
[422732672,1779339038000,-77352.16228425,7.619e-05,2]
[422732671,1779339038000,-151.0,7.487e-05,2]
[422732673,1779339038000,-2925.10347427,7.619e-05,2]
[422732682,1779339040000,-3779.90698828,7.619e-05,2]
[422732681,1779339040000,-458.9215886,7.619e-05,2]
[422732720,1779339043000,-500.0,8.219e-05,2]
[422732722,1779339043000,-500.0,8.219e-05,2]
[422732719,1779339043000,-500.0,8.219e-05,2]
[422732712,1779339043000,-1512.8912,8.219e-05,2]
[422732711,1779339043000,-420.0,8.139e-05,2]
[422732721,1779339043000,-500.0,8.219e-05,2]
[422732714,1779339043000,-500.0,8.219e-05,2]
[422732715,1779339043000,-500.0,8.219e-05,2]
[422732716,1779339043000,-500.0,8.219e-05,2]
[422732717,1779339043000,-319.07207155,8.219e-05,2]
[422732725,1779339043000,-500.0,8.219e-05,2]
[422732723,1779339043000,-751.49,8.219e-05,2]
[422732724,1779339043000,-540.17,8.219e-05,2]
[422732726,1779339043000,-1028.99,8.219e-05,2]
[422732727,1779339043000,-500.0,8.219e-05,2]
[422732729,1779339043000,-2816.06325684,8.219e-05,2]
[422732718,1779339043000,-500.0,8.219e-05,2]
[422732713,1779339043000,-500.0,8.219e-05,2]
[422732706,1779339043000,-300.0,7.872e-05,2]
[422732710,1779339043000,-150.48132108,8e-05,2]
[422732734,1779339043000,-402.80986937,8.219e-05,2]
[422732693,1779339043000,-300.0,7.872e-05,2]
[422732692,1779339043000,-108047.63521274,7.619e-05,2]
[422732695,1779339043000,-300.0,7.872e-05,2]
[422732707,1779339043000,-300.0,7.872e-05,2]
[422732696,1779339043000,-300.0,7.872e-05,2]
[422732694,1779339043000,-300.0,7.872e-05,2]
[422732705,1779339043000,-300.0,7.872e-05,2]
[422732699,1779339043000,-300.0,7.872e-05,2]
[422732698,1779339043000,-300.0,7.872e-05,2]
[422732697,1779339043000,-300.0,7.872e-05,2]
[422732701,1779339043000,-300.0,7.872e-05,2]
[422732700,1779339043000,-300.0,7.872e-05,2]
[422732702,1779339043000,-300.0,7.872e-05,2]
[422732703,1779339043000,-300.0,7.872e-05,2]
[422732704,1779339043000,-300.0,7.872e-05,2]
[422732709,1779339043000,-256.86190267,7.872e-05,2]
[422732708,1779339043000,-600.0,7.872e-05,2]
[422732731,1779339043000,-380.183,8.219e-05,2]
[422732742,1779339043000,-500.0,8.219e-05,2]
[422732735,1779339043000,-500.0,8.219e-05,2]
[422732753,1779339043000,-500.0,8.219e-05,2]
[422732750,1779339043000,-500.0,8.219e-05,2]
[422732754,1779339043000,-500.0,8.219e-05,2]
[422732752,1779339043000,-1442.88,8.219e-05,2]
[422732758,1779339043000,-285.26470359,8.219e-05,2]
[422732760,1779339043000,-500.0,8.219e-05,2]
[422732756,1779339043000,-500.0,8.219e-05,2]
[422732755,1779339043000,-500.0,8.219e-05,2]
[422732764,1779339043000,-418.32800992,8.219e-05,2]
[422732770,1779339043000,-520.24,8.219e-05,2]
[422732767,1779339043000,-517.18529641,8.219e-05,2]
[422732768,1779339043000,-677.59470359,8.219e-05,2]
[422732773,1779339043000,-520.24,8.219e-05,2]
[422732769,1779339043000,-520.24,8.219e-05,2]
[422732771,1779339043000,-520.24,8.219e-05,2]
[422732765,1779339043000,-500.0,8.219e-05,2]
[422732733,1779339043000,-97.19013063,8.219e-05,2]
[422732757,1779339043000,-315.48529641,8.219e-05,2]
[422732759,1779339043000,-1040.22,8.219e-05,2]
[422732772,1779339043000,-520.24,8.219e-05,2]
[422732761,1779339043000,-500.0,8.219e-05,2]
[422732763,1779339043000,-81.67199008,8.219e-05,2]
[422732730,1779339043000,-251.11704093,8.219e-05,2]
[422732732,1779339043000,-3619.99670223,8.219e-05,2]
[422732728,1779339043000,-543.95,8.219e-05,2]
[422732749,1779339043000,-500.0,8.219e-05,2]
[422732747,1779339043000,-500.0,8.219e-05,2]
[422732736,1779339043000,-500.0,8.219e-05,2]
[422732738,1779339043000,-348.07738711,8.219e-05,2]
[422732748,1779339043000,-500.0,8.219e-05,2]
[422732741,1779339043000,-568.94,8.219e-05,2]
[422732766,1779339043000,-657.33,8.219e-05,2]
[422732743,1779339043000,-500.0,8.219e-05,2]
[422732746,1779339043000,-500.0,8.219e-05,2]
[422732744,1779339043000,-1149.71,8.219e-05,2]
[422732745,1779339043000,-1422.74,8.219e-05,2]
[422732751,1779339043000,-1208.68,8.219e-05,2]
[422732762,1779339043000,-500.0,8.219e-05,2]
[422732740,1779339043000,-729.07261289,8.219e-05,2]
[422732775,1779339044000,-520.24,8.219e-05,2]
[422732774,1779339044000,-520.24,8.219e-05,2]
[422732777,1779339044000,-520.24,8.219e-05,2]
[422732776,1779339044000,-520.24,8.219e-05,2]
[422732782,1779339044000,-83.30756596,8.219e-05,2]
[422732780,1779339044000,-520.24,8.219e-05,2]
[422732781,1779339044000,-520.24,8.219e-05,2]
[422732779,1779339044000,-520.24,8.219e-05,2]
[422732778,1779339044000,-520.24,8.219e-05,2]
[422732832,1779339047000,-1149.71,8.493e-05,2]
[422732826,1779339047000,-500.0,8.493e-05,2]
[422732825,1779339047000,-500.0,8.493e-05,2]
[422732827,1779339047000,-500.0,8.493e-05,2]
[422732829,1779339047000,-568.94,8.493e-05,2]
[422732830,1779339047000,-500.0,8.493e-05,2]
[422732828,1779339047000,-1077.15,8.493e-05,2]
[422732838,1779339047000,-500.0,8.493e-05,2]
[422732837,1779339047000,-500.0,8.493e-05,2]
[422732836,1779339047000,-500.0,8.493e-05,2]
[422732831,1779339047000,-500.0,8.493e-05,2]
[422732835,1779339047000,-500.0,8.493e-05,2]
[422732846,1779339047000,-1040.22,8.493e-05,2]
[422732833,1779339047000,-1422.74,8.493e-05,2]